bitfinex-derivatives/quotes_SOLF0:USTF0_20241215
["timestamp","ask_amount","ask_price","bid_price","bid_amount"]
[1734306142248,3.5,224.5,224.4,2.2289]
[1734306142445,5.40034043,224.59,224.39,5.38214486]
[1734306142641,4.9424,224.58,224.39,5.38214486]
[1734306142841,26.78,224.56,224.08,5.88336894]
[1734306143044,2.2292,224.37,224.26,2.2302]
[1734306143241,3.5,224.36,224.24,1.4631]
[1734306143444,3.5,224.35,224.24,1.4631]
[1734306143645,3.5,224.34,224.24,1.4631]
[1734306143951,3.5,224.33,224.25,2.2303]
[1734306144250,3.5,224.34,224.2,2.2308]
[1734306144450,3.5,224.33,224.16,1.5107]
[1734306144641,3.5,224.32,224.16,1.5107]
[1734306144845,3.5,224.31,224.21,2.2308]
[1734306145047,3.5,224.31,224.16,1.5107]
[1734306145552,2.2303,224.26,224.16,1.5107]
[1734306145846,2.2303,224.26,224.18,5.39265362]
[1734306146652,2.2303,224.26,224.08,1.0369]
[1734306146653,2.2308,224.21,224.11,2.2317]
[1734306146846,3.5,224.2,224.11,2.2317]
[1734306147146,3.5,224.2,224.06,1.5553]
[1734306147848,3.5,224.2,224.07,5.37565951]
[1734306148057,1.5019,224.29,224.07,5.37565951]
[1734306148348,3.5,224.28,224.07,5.37565951]
[1734306149146,2.2305,224.24,224.12,2.2316]
[1734306149449,1.5019,224.29,224.08,3.5]
[1734306149450,3.5,224.23,224.08,3.5]
[1734306149846,3.5,224.23,224.15,2.2313]
[1734306150751,3.5,224.23,224.08,3.5]
[1734306151658,3.5,224.23,224.15,2.2313]
[1734306152254,2.2304,224.25,224.15,2.2313]
[1734306152552,3.5,224.24,224.15,2.2313]
[1734306152948,3.5,224.24,224.16,2.2312]
[1734306153352,3.5,224.24,224.08,3.5]
[1734306153353,3.5,224.25,224.09,4.9843887]
[1734306153543,3.5,224.25,224.08,3.5]
[1734306153544,3.5,224.25,224.16,2.2312]
[1734306153748,3.5,224.25,224.08,3.5]
[1734306154351,5.7304,224.25,224.08,3.5]
[1734306155558,5.7304,224.25,224.16,2.2312]
[1734306155758,3.5,224.25,224.16,2.2312]
[1734306155956,3.5,224.25,224.19,2.2309]
[1734306156152,2.9524,224.3,224.09,4.97904256]
[1734306156355,3.5,224.29,224.1,12.94332183]
[1734306156555,3.5,224.29,224.11,4.97904256]
[1734306156758,3.5,224.29,224.12,4.97904256]
[1734306156955,3.5,224.29,224.13,1.042]
[1734306157161,5.73,224.29,224.13,1.042]
[1734306157763,5.73,224.29,224.21,2.2307]
[1734306158359,2.9524,224.3,224.13,1.042]
[1734306158761,2.9169,224.37,224.14,4.97364789]
[1734306159061,5.1462,224.37,224.29,2.2299]
[1734306159254,5.1462,224.37,224.23,3.5]
[1734306159457,2.9169,224.37,224.24,1.5551]
[1734306159864,2.9169,224.37,224.27,2.2301]
[1734306160365,2.9169,224.37,224.24,1.5551]
[1734306160665,3.5,224.39,224.24,1.5551]
[1734306160965,1.4253,224.44,224.27,5.39198284]
[1734306161165,2.2287,224.42,224.32,2.2297]
[1734306161360,1.4253,224.44,224.27,5.39198284]
[1734306162058,1.4253,224.44,224.28,1.4328]
[1734306162761,1.4951,224.46,224.28,1.4328]
[1734306163154,1.4951,224.46,224.4,2.2289]
[1734306163364,1.4951,224.46,224.28,1.4328]
[1734306163365,1.4951,224.46,224.34,3.5]
[1734306163664,49.1243419,224.49,224.42,2.2287]
[1734306164359,49.1243419,224.49,224.33,2.2295]
[1734306164360,46.8962419,224.49,224.33,2.2295]
[1734306165465,46.8962419,224.49,224.31,2.2298]
[1734306165660,46.8962419,224.49,224.28,1.4328]
[1734306166062,2.2286,224.43,224.31,2.2298]
[1734306166259,46.8962419,224.49,224.1,7.95279306]
[1734306166260,3.48,224.42,224.1,7.95279306]
[1734306166465,3.48,224.41,224.11,16.40506963]
[1734306166767,7.8459,224.4,224.12,12.92506963]
[1734306166964,2.2297,224.32,224.24,2.2304]
[1734306167757,2.2297,224.32,224.24,7.56068971]
[1734306168062,7.8459,224.4,224.24,5.33028971]
[1734306168659,10.0749,224.4,224.24,5.33028971]
[1734306168863,10.0749,224.4,224.25,1.4906]
[1734306169064,2.229,224.39,224.3,2.2298]
[1734306169666,2.229,224.39,224.31,2.2298]
[1734306170066,7.8459,224.4,224.25,1.4906]
[1734306170266,7.8459,224.4,224.26,3.48]
[1734306170966,7.8459,224.4,224.34,2.2294]
[1734306171364,1.4367,224.4,224.37,2.2291]
[1734306171561,3.48,224.45,224.37,2.2291]
[1734306172166,4.5574,224.48,224.26,3.48]
[1734306172167,3.48,224.46,224.26,3.48]
[1734306172362,8.0374,224.48,224.26,3.48]
[1734306172766,10.2655,224.48,224.27,4.96826108]
[1734306172961,8.0374,224.48,224.26,3.48]
[1734306173166,2.2282,224.47,224.33,2.2296]
[1734306173471,8.0374,224.48,224.33,3.48]
[1734306173667,2.2282,224.47,224.4,2.2288]
[1734306174063,4.5574,224.48,224.34,3.48]
[1734306174269,3.0042,224.48,224.34,3.48]
[1734306174468,3.48,224.5,224.34,3.48]
[1734306174970,5.7079,224.5,224.38,2.229]
[1734306175169,3.48,224.5,224.34,3.48]
[1734306175374,1.4994,224.49,224.34,3.48]
[1734306175672,2.9108,224.49,224.33,3.48]
[1734306175867,1.5197,224.48,224.33,3.48]
[1734306176069,1.5197,224.48,224.25,2.9525]
[1734306176469,1.5197,224.48,224.26,3.48]
[1734306177275,2.2289,224.4,224.26,3.48]
[1734306177667,2.2289,224.4,224.33,2.2295]
[1734306177870,3.48,224.43,224.26,3.48]
[1734306178274,3.48,224.43,224.36,2.2293]
[1734306178474,5.7086,224.43,224.36,2.2293]
[1734306180068,3.48,224.43,224.3,3.48]
[1734306180470,3.48,224.43,224.28,2.23]
[1734306180471,2.2292,224.37,224.28,2.23]
[1734306180768,3.48,224.43,224.24,5.33028971]
[1734306180974,2.2298,224.31,224.24,5.33028971]
[1734306181369,3.48,224.34,224.24,5.33028971]
[1734306181575,2.2297,224.33,224.25,2.2303]
[1734306181776,3.48,224.34,224.24,5.33028971]
[1734306182369,3.48,224.34,224.28,2.2301]
[1734306182579,4.4874,224.36,224.24,5.33028971]
[1734306182771,3.48,224.38,224.24,5.33028971]
[1734306182975,3.48,224.38,224.31,2.2298]
[1734306182976,5.7091,224.38,224.31,2.2298]
[1734306183773,3.48,224.44,224.27,3.48]
[1734306184172,3.48,224.44,224.37,2.2291]
[1734306186180,5.7085,224.44,224.37,2.2291]
[1734306186679,5.7085,224.44,224.36,2.2292]
[1734306187677,5.7085,224.44,224.24,5.33028971]
[1734306187678,3.48,224.44,224.24,5.33028971]
[1734306187883,16.86,224.44,224.24,5.33028971]
[1734306188082,2.2296,224.33,224.26,2.2303]
[1734306188383,3.48,224.44,224.24,5.33028971]
[1734306188582,2.2292,224.37,224.29,2.23]
[1734306188781,3.48,224.44,224.29,2.23]
[1734306188984,3.48,224.44,224.24,8.81028971]
[1734306189179,2.2294,224.36,224.28,2.2301]
[1734306189385,3.48,224.44,224.24,8.81028971]
[1734306190586,3.48,224.44,224.25,5.00703572]
[1734306190778,3.48,224.44,224.26,5.00703572]
[1734306190983,2.229,224.39,224.3,2.2299]
[1734306191184,5.39651074,224.42,224.24,8.81028971]
[1734306191486,3.48,224.43,224.25,5.00735179]
[1734306191689,2.2289,224.4,224.26,5.00735179]
[1734306191880,2.2289,224.4,224.24,8.81028971]
[1734306191881,2.2289,224.4,224.27,5.00685912]
[1734306192077,3.48,224.43,224.24,8.81028971]
[1734306192286,4.405,224.52,224.35,2.2294]
[1734306192586,3.48,224.51,224.26,5.00898767]
[1734306192781,4.405,224.52,224.38,2.229]
[1734306192782,2.2285,224.45,224.38,2.229]
[1734306192982,3.48,224.5,224.32,3.48]
[1734306193282,2.228,224.5,224.42,2.2287]
[1734306193682,3.48,224.51,224.36,3.48]
[1734306193886,3.48,224.51,224.38,2.229]
[1734306194189,3.48,224.51,224.3,3.48]
[1734306194383,2.2288,224.41,224.33,2.2295]
[1734306194685,3.48,224.51,224.3,3.48]
[1734306194984,3.48,224.51,224.31,8.49015746]
[1734306195189,3.48,224.51,224.35,2.2293]
[1734306195589,6.4589,224.52,224.31,3.48]
[1734306195886,2.228,224.5,224.42,2.2286]
[1734306196087,6.4589,224.52,224.42,2.2286]
[1734306196787,6.4589,224.52,224.44,2.2285]
[1734306196983,2.2278,224.51,224.44,2.2285]
[1734306197386,6.4589,224.52,224.42,2.2286]
[1734306198690,6.4589,224.52,224.38,3.48]
[1734306199095,5.2067,224.52,224.38,3.48]
[1734306199291,2.9789,224.52,224.38,3.48]
[1734306199490,2.9789,224.52,224.45,2.2283]
[1734306200193,5.2066,224.52,224.38,3.48]
[1734306200585,5.2066,224.52,224.42,2.2287]
[1734306200785,5.2066,224.52,224.38,3.48]
[1734306201698,2.9789,224.52,224.38,3.48]
[1734306201992,1.4474,224.53,224.38,3.48]
[1734306202187,1.4474,224.53,224.39,13.05764144]
[1734306202385,1.4474,224.53,224.4,5.02121086]
[1734306202597,1.4474,224.53,224.41,5.02121086]
[1734306202890,1.4474,224.53,224.38,3.48]
[1734306203093,1.4474,224.53,224.42,5.32001119]
[1734306204094,2.2278,224.51,224.43,3.46]
[1734306204394,1.4474,224.53,224.43,3.46]
[1734306204591,3.675,224.53,224.46,2.2283]
[1734306204792,1.4474,224.53,224.43,3.46]
[1734306204995,1.4594,224.52,224.43,3.46]
[1734306205692,1.4965,224.51,224.42,5.32001119]
[1734306206093,2.2283,224.46,224.39,2.2289]
[1734306206292,1.4965,224.51,224.37,2.2291]
[1734306206493,1.4965,224.51,224.34,3.46]
[1734306206692,1.4965,224.51,224.35,2.2294]
[1734306206896,1.4965,224.51,224.34,3.46]
[1734306207295,2.2284,224.45,224.38,2.2291]
[1734306207891,1.4965,224.51,224.34,3.46]
[1734306208095,1.4965,224.51,224.37,5.36555354]
[1734306209190,2.228,224.48,224.4,2.2287]
[1734306209592,1.4965,224.51,224.37,8.82555354]
[1734306210390,2.2279,224.5,224.42,2.2285]
[1734306211294,1.4965,224.51,224.37,8.82555354]
[1734306211899,1.4965,224.51,224.46,2.2281]
[1734306212496,1.4965,224.51,224.37,8.82555354]
[1734306212497,1.4594,224.52,224.49,2.2278]
[1734306212817,1.4233,224.6,224.49,2.2278]
[1734306213000,2.9239,224.6,224.49,2.2278]
[1734306213195,1.5232,224.59,224.47,2.228]
[1734306213396,1.5232,224.59,224.45,3.46]
[1734306213603,1.5232,224.59,224.4,3.46]
[1734306213801,2.2279,224.49,224.4,3.46]
[1734306214002,1.5232,224.59,224.4,3.46]
[1734306216097,1.5232,224.59,224.43,2.2284]
[1734306216495,1.5232,224.59,224.37,5.36555354]
[1734306216694,1.5232,224.59,224.38,2.2289]
[1734306217205,2.2284,224.43,224.37,5.36555354]
[1734306217897,2.2283,224.45,224.37,7.59455354]
[1734306218101,2.2283,224.45,224.37,5.36555354]
[1734306218594,2.2284,224.43,224.37,5.36555354]
[1734306218794,1.5232,224.59,224.37,5.36555354]
[1734306219901,2.2279,224.48,224.37,5.36555354]
[1734306220402,2.2278,224.5,224.43,2.2284]
[1734306220905,3.46,224.55,224.41,3.46]
[1734306223002,3.46,224.55,224.43,2.2284]
[1734306223404,3.46,224.55,224.41,3.46]
[1734306223900,3.46,224.55,224.44,2.2283]
[1734306224104,3.46,224.55,224.4,3.46]
[1734306224308,2.2277,224.51,224.43,2.2284]
[1734306224611,3.46,224.55,224.4,3.46]
[1734306224917,2.2279,224.48,224.41,2.2285]
[1734306225206,2.2279,224.48,224.4,3.46]
[1734306225509,3.46,224.53,224.37,5.36555354]
[1734306225708,2.228,224.48,224.42,2.2285]
[1734306225903,1.5232,224.59,224.37,8.82555354]
[1734306226099,1.5232,224.59,224.43,2.2284]
[1734306226100,2.2276,224.51,224.43,2.2284]
[1734306226305,3.46,224.58,224.37,8.82555354]
[1734306226705,2.2275,224.52,224.45,2.2281]
[1734306226906,2.2275,224.52,224.39,5.0287343]
[1734306227207,3.46,224.58,224.4,3.46]
[1734306227405,1.5232,224.59,224.4,3.46]
[1734306227913,1.5232,224.59,224.5,2.2277]
[1734306227914,2.227,224.57,224.5,2.2277]
[1734306228114,2.227,224.57,224.47,3.46]
[1734306228412,1.5232,224.59,224.47,3.46]
[1734306228811,1.5232,224.59,224.48,5.02519757]
[1734306229108,1.5232,224.59,224.55,2.2272]
[1734306229807,3.7274,224.6,224.55,2.2272]
[1734306230011,1.5006,224.6,224.51,2.2275]
[1734306231512,1.5006,224.6,224.39,1.78278593]
[1734306231811,1.5006,224.6,224.4,16.51095343]
[1734306232009,3.46,224.62,224.5,5.2677289]
[1734306233013,2.2273,224.55,224.5,5.2677289]
[1734306233213,3.46,224.62,224.5,5.2677289]
[1734306233813,1.4309,224.66,224.5,5.2677289]
[1734306234119,3.46,224.65,224.5,5.2677289]
[1734306234414,3.46,224.65,224.51,1.5159]
[1734306234614,3.46,224.64,224.51,1.5159]
[1734306235512,2.2269,224.58,224.51,1.5159]
[1734306236212,2.227,224.57,224.51,1.5159]
[1734306236414,3.46,224.64,224.51,1.5159]
[1734306238318,2.2267,224.6,224.53,2.2274]
[1734306239720,2.2267,224.6,224.51,1.5159]
[1734306239721,2.2267,224.6,224.54,2.2273]
[1734306240320,2.2267,224.6,224.53,2.2274]
[1734306240623,3.46,224.64,224.51,1.5159]
[1734306240819,2.2268,224.6,224.52,2.2275]
[1734306241021,1.4309,224.66,224.51,1.5159]
[1734306241022,3.46,224.66,224.51,1.5159]
[1734306241221,3.46,224.67,224.51,1.5159]
[1734306241419,3.46,224.71,224.51,1.5159]
[1734306241621,1.71973,224.76,224.51,1.5159]
[1734306241920,2.2257,224.71,224.52,5.01746814]
[1734306242117,2.2257,224.71,224.51,1.5159]
[1734306242118,3.46,224.75,224.53,3.46]
[1734306243720,2.2257,224.71,224.54,5.00983518]
[1734306243926,2.2257,224.71,224.53,3.46]
[1734306244226,2.2257,224.7,224.64,2.2263]
[1734306244422,2.2257,224.7,224.62,3.46]
[1734306244727,0.18143,224.76,224.63,3.9447]
[1734306244923,2.2256,224.72,224.65,2.2262]
[1734306245332,2.2256,224.72,224.63,3.9447]
[1734306245529,2.2256,224.72,224.66,2.2261]
[1734306245726,0.18143,224.76,224.63,3.9447]
[1734306246231,3.46,224.86,224.73,2.2254]
[1734306246430,2.2248,224.8,224.73,2.2254]
[1734306246827,2.2248,224.8,224.74,2.2253]
[1734306247029,2.2249,224.79,224.7,3.46]
[1734306247529,3.46,224.86,224.73,2.2254]
[1734306247825,3.46,224.86,224.7,3.46]
[1734306248028,3.46,224.86,224.74,2.2253]
[1734306248229,2.2246,224.82,224.74,2.2253]
[1734306248631,3.46,224.87,224.74,2.2253]
[1734306249023,1.4671,224.9,224.7,3.46]
[1734306249234,4.9271,224.9,224.7,3.46]
[1734306249524,2.2244,224.84,224.76,2.2251]
[1734306250530,2.2244,224.84,224.77,2.225]
[1734306250737,9.72574617,224.91,224.77,3.46]
[1734306251439,9.72574617,224.91,224.78,1.4925]
[1734306251936,9.72574617,224.91,224.68,3.46]
[1734306252135,9.72574617,224.91,224.69,1.4925]
[1734306252529,9.72574617,224.91,224.69,3.7183]
[1734306252530,2.225,224.78,224.69,3.7183]
[1734306252731,3.46,224.82,224.69,3.7183]
[1734306253039,3.46,224.83,224.69,1.4925]
[1734306253229,3.46,224.83,224.7,5.25148401]
[1734306253934,1.5157,224.82,224.7,5.25148401]
[1734306255938,2.2249,224.79,224.7,5.25148401]
[1734306256142,1.5157,224.82,224.7,5.25148401]
[1734306257443,1.5157,224.82,224.64,1.4925]
[1734306258036,3.44,224.81,224.69,5.41123998]
[1734306259346,3.44,224.8,224.69,5.41123998]
[1734306259846,2.2253,224.75,224.69,5.41123998]
[1734306260044,3.44,224.8,224.69,5.41123998]
[1734306260642,2.2253,224.75,224.69,5.41123998]
[1734306260837,3.44,224.8,224.64,1.4925]
[1734306261043,1.4579,224.79,224.64,1.4925]
[1734306261443,1.4579,224.79,224.64,3.7188]
[1734306261739,1.4579,224.79,224.68,5.32115595]
[1734306261938,2.2257,224.7,224.68,5.32115595]
[1734306262139,2.2257,224.7,224.64,1.4925]
[1734306262637,2.2257,224.7,224.67,5.45691063]
[1734306264045,1.4579,224.79,224.67,5.45691063]
[1734306264250,1.4579,224.79,224.64,1.4925]
[1734306264743,2.226,224.67,224.64,1.4925]
[1734306264949,3.44,224.72,224.64,1.4925]
[1734306265950,2.2259,224.69,224.64,1.4925]
[1734306266145,3.44,224.72,224.64,1.4925]
[1734306266743,2.2259,224.69,224.64,1.4925]
[1734306266947,9.72574617,224.91,224.64,1.4925]
[1734306267145,3.44,224.84,224.65,2.5683]
[1734306267749,10.2987691,224.82,224.65,2.5683]
[1734306267952,4.9557,224.82,224.65,2.5683]
[1734306269149,4.9557,224.82,224.66,4.97035138]
[1734306269449,4.9557,224.82,224.65,2.5683]
[1734306269645,4.9557,224.82,224.66,4.97035515]
[1734306269843,4.9557,224.82,224.71,2.2256]
[1734306270242,4.9557,224.82,224.65,2.5683]
[1734306270442,2.2252,224.76,224.69,2.2258]
[1734306271247,2.225,224.79,224.65,2.5683]
[1734306271443,3.44,224.82,224.66,4.97596141]
[1734306271642,3.44,224.82,224.67,4.97596141]
[1734306271840,2.2247,224.81,224.7,2.2257]
[1734306272050,1.4218,224.86,224.7,3.44]
[1734306272251,4.8618,224.86,224.7,3.44]
[1734306273047,5.63056433,224.96,224.7,3.44]
[1734306273248,5.63056433,224.96,224.71,15.82915909]
[1734306273448,5.63056433,224.96,224.72,15.82915909]
[1734306273650,5.63056433,224.96,224.7,3.44]
[1734306273849,5.33398433,224.96,224.71,15.81808294]
[1734306274155,5.33398433,224.96,224.72,15.81808294]
[1734306274450,5.33398433,224.96,224.73,14.03763897]
[1734306274650,5.33398433,224.96,224.74,8.59707805]
[1734306274850,5.33398433,224.96,224.75,6.50450057]
[1734306275152,5.33398433,224.96,224.76,4.97110057]
[1734306275352,5.33398433,224.96,224.77,3.44]
[1734306275546,2.2241,224.87,224.8,2.2247]
[1734306276050,5.33398433,224.96,224.77,3.44]
[1734306276248,13.16574617,224.91,224.77,3.44]
[1734306276449,9.72574617,224.91,224.76,3.44]
[1734306276654,2.2245,224.83,224.77,2.225]
[1734306277050,13.16574617,224.91,224.74,1.4794]
[1734306277353,2.2249,224.79,224.74,1.4794]
[1734306277554,1.5384,224.9,224.75,5.29878984]
[1734306277748,1.4163,224.89,224.75,5.29878984]
[1734306278259,1.4071,224.88,224.75,5.29878984]
[1734306279553,2.2243,224.85,224.77,2.225]
[1734306280548,2.2243,224.85,224.75,5.29878984]
[1734306281555,2.2243,224.85,224.78,2.2249]
[1734306281756,2.2243,224.85,224.75,5.29878984]
[1734306283357,1.4071,224.88,224.75,5.29878984]
[1734306283561,2.2244,224.84,224.77,2.225]
[1734306285854,2.2244,224.84,224.78,2.2249]
[1734306287752,2.2244,224.84,224.75,5.29878984]
[1734306287753,1.4071,224.88,224.75,5.29878984]
[1734306288159,2.2246,224.82,224.75,5.29878984]
[1734306288757,3.42,224.85,224.64,1.0338]
[1734306288960,3.42,224.85,224.68,13.00279536]
[1734306289164,2.2255,224.73,224.66,2.2261]
[1734306289369,3.42,224.77,224.63,5.31592891]
[1734306289663,3.0341,224.76,224.64,5.0063725]
[1734306289861,3.0341,224.76,224.63,5.31592891]
[1734306290164,3.0341,224.76,224.64,5.00618389]
[1734306290366,3.0341,224.76,224.65,5.00170717]
[1734306290558,3.0341,224.76,224.66,5.00170717]
[1734306290759,3.0341,224.76,224.63,5.31592891]
[1734306290959,5.2593,224.76,224.7,2.2257]
[1734306291561,3.42,224.83,224.63,5.31592891]
[1734306291865,2.2249,224.79,224.73,2.2254]
[1734306292265,2.225,224.78,224.71,2.2256]
[1734306293964,3.42,224.83,224.63,5.31592891]
[1734306294862,2.2251,224.77,224.64,2.2263]
[1734306295168,7.8452,224.76,224.64,2.2263]
[1734306295564,7.8452,224.76,224.63,5.31592891]
[1734306296667,2.2258,224.7,224.59,2.2267]
[1734306296862,3.42,224.7,224.54,3.42]
[1734306297070,3.42,224.7,224.55,5.00516647]
[1734306297370,2.226,224.68,224.54,3.42]
[1734306297559,2.226,224.68,224.55,5.00361078]
[1734306297763,2.226,224.68,224.54,3.42]
[1734306297961,2.226,224.68,224.55,5.00394087]
[1734306298160,2.226,224.67,224.6,2.2267]
[1734306298360,3.42,224.7,224.55,5.00226545]
[1734306298560,3.42,224.7,224.61,5.22841762]
[1734306298769,2.2262,224.66,224.61,5.22841762]
[1734306299166,3.42,224.7,224.55,5.00235673]
[1734306299167,2.2267,224.61,224.55,5.00235673]
[1734306299364,2.2267,224.61,224.54,2.2273]
[1734306299365,3.42,224.7,224.54,2.2273]
[1734306299867,3.42,224.7,224.53,4.8467]
[1734306299868,3.42,224.7,224.58,5.32424025]
[1734306301071,2.2266,224.62,224.58,5.32424025]
[1734306301262,2.2266,224.62,224.53,1.4267]
[1734306301263,3.42,224.7,224.53,1.4267]
[1734306301467,3.42,224.7,224.45,1.4181]
[1734306301767,16.8,224.7,224.46,14.46125544]
[1734306302070,16.8,224.7,224.46,9.45785374]
[1734306302263,2.2268,224.59,224.46,9.45785374]
[1734306302460,2.2268,224.59,224.46,1.4529]
[1734306302873,2.227,224.58,224.51,5.32756365]
[1734306303466,31.08648024,224.75,224.52,67.72]
[1734306303672,37.27656229,224.97,224.53,22.34996854]
[1734306303673,9.72574617,224.91,224.53,22.34996854]
[1734306303873,1.3994,224.86,224.54,15.8828996]
[1734306304073,4.8681,224.85,224.55,15.8828996]
[1734306304368,4.8681,224.85,224.71,2.2256]
[1734306304571,6.3996,224.85,224.61,3.42]
[1734306304765,2.2245,224.83,224.62,6.02230295]
[1734306305067,3.42,224.82,224.63,12.95948233]
[1734306305265,3.42,224.82,224.64,12.95948233]
[1734306305461,3.42,224.82,224.74,2.2253]
[1734306305668,1.3994,224.86,224.68,3.42]
[1734306305864,9.72574617,224.91,224.78,2.2249]
[1734306305865,3.42,224.87,224.78,2.2249]
[1734306306266,3.58174,224.88,224.78,2.2249]
[1734306306472,3.58174,224.88,224.75,2.2252]
[1734306306674,3.58174,224.88,224.74,5.40458866]
[1734306307477,3.42,224.87,224.74,5.40458866]
[1734306307976,2.2245,224.83,224.74,5.40458866]
[1734306308771,3.002,224.86,224.74,5.40458866]
[1734306309173,3.002,224.86,224.69,1.4547]
[1734306309174,1.4582,224.85,224.69,1.4547]
[1734306309371,2.2247,224.81,224.69,1.4547]
[1734306309569,1.4582,224.85,224.69,1.4547]
[1734306309570,3.42,224.8,224.69,1.4547]
[1734306310172,2.2251,224.77,224.69,1.4547]
[1734306311275,2.2252,224.76,224.71,5.21120986]
[1734306311873,0.16174,224.88,224.72,3.42]
[1734306312082,0.16174,224.88,224.72,5.9434]
[1734306312676,0.16174,224.88,224.82,2.2245]
[1734306313381,2.38574,224.88,224.8,2.2247]
[1734306313583,0.16174,224.88,224.77,3.42]
[1734306313876,2.2241,224.87,224.8,2.2247]
[1734306314781,2.2242,224.86,224.79,2.2248]
[1734306315378,0.16174,224.88,224.73,3.4]
[1734306315581,0.16174,224.88,224.73,2.2254]
[1734306316385,3.4,224.87,224.73,2.2254]
[1734306316886,0.16174,224.88,224.72,1.4921]
[1734306317282,2.2242,224.86,224.72,2.5234]
[1734306317677,2.2242,224.86,224.78,2.2249]
[1734306317885,0.16174,224.88,224.72,2.5234]
[1734306318277,0.16174,224.88,224.81,2.2246]
[1734306318480,0.16174,224.88,224.76,3.4]
[1734306318882,0.16174,224.88,224.8,2.2247]
[1734306319485,2.2241,224.87,224.8,2.2247]
[1734306320180,2.38574,224.88,224.8,2.2247]
[1734306321680,2.2241,224.87,224.79,2.2248]
[1734306322486,2.2241,224.87,224.8,2.2248]
[1734306323592,9.72574617,224.91,224.84,2.2244]
[1734306323882,9.72574617,224.91,224.76,3.4]
[1734306325485,2.2241,224.88,224.8,2.2247]
[1734306325683,2.2241,224.88,224.76,3.4]
[1734306326584,2.2241,224.88,224.82,2.2245]
[1734306327485,2.2239,224.9,224.84,5.21986218]
[1734306327689,9.72574617,224.91,224.84,5.21986218]
[1734306328084,9.72574617,224.91,224.87,2.224]
[1734306328284,9.72574617,224.91,224.84,5.21986218]
[1734306328988,2.2238,224.9,224.84,5.21986218]
[1734306329378,9.72574617,224.91,224.84,5.21986218]
[1734306329579,9.72574617,224.91,224.76,3.4]
[1734306330683,9.72574617,224.91,224.83,5.35320934]
[1734306330890,9.72574617,224.91,224.84,1.4628]
[1734306331286,9.72574617,224.91,224.87,2.2241]
[1734306331988,9.72574617,224.91,224.85,2.2242]
[1734306333191,2.2238,224.9,224.84,3.6871]
[1734306333406,9.72574617,224.91,224.84,3.6871]
[1734306333588,2.2239,224.89,224.83,5.21702933]
[1734306333788,9.72574617,224.91,224.83,5.21702933]
[1734306334396,12.73464617,224.91,224.83,5.21702933]
[1734306334692,2.2239,224.89,224.83,5.21702933]
[1734306334888,14.16024617,224.91,224.83,5.21702933]
[1734306336290,2.2239,224.9,224.83,5.21702933]
[1734306336897,2.2239,224.9,224.84,2.2243]
[1734306337193,12.73464617,224.91,224.83,5.21702933]
[1734306338390,2.2238,224.9,224.84,2.2243]
[1734306339096,3.4,224.89,224.73,6.09144175]
[1734306339299,3.4,224.89,224.7,1.3991]
[1734306339300,18.2532,224.89,224.7,1.3991]
[1734306339592,18.2532,224.89,224.63,3.4]
[1734306339994,18.2532,224.89,224.64,1.3991]
[1734306341299,18.2532,224.89,224.7,2.2257]
[1734306342094,4.8732,224.89,224.64,4.7991]
[1734306342399,4.8732,224.89,224.72,5.36824318]
[1734306343197,4.8732,224.89,224.72,7.59374318]
[1734306343198,2.2249,224.79,224.72,7.59374318]
[1734306343700,2.225,224.78,224.72,5.36824318]